bitfinex/quotes_ETHUSD_20240711
["timestamp","ask_amount","ask_price","bid_price","bid_amount"]
[1720700579001,1.09703261,3156.4,3156.0,0.4]
[1720700579200,4.26555716,3156.3,3156.0,0.4]
[1720700579410,1.09722716,3156.2,3156.0,0.4]
[1720700579599,1.09730441,3156.1,3156.0,0.4]
[1720700580104,1.09731478,3156.1,3156.0,0.4]
[1720700580685,9.84413478,3156.1,3156.0,0.4]
[1720700580885,14.31470826,3156.1,3156.0,0.4]
[1720700581114,3.16945,3155.2,3154.4,2.3112]
[1720700581320,6.3389,3155.2,3154.8,0.4]
[1720700581618,3.16945,3155.2,3154.8,0.4]
[1720700581825,1.32603574,3156.1,3155.1,3.16945]
[1720700581983,3.16854,3156.1,3155.2,3.79100077]
[1720700582179,1.09734512,3156.0,3155.3,0.06337436]
[1720700582423,3.16836,3156.2,3155.3,3.23261436]
[1720700582600,3.16812,3156.5,3155.4,3.71914]
[1720700582601,1.09727691,3156.1,3155.4,3.71914]
[1720700582916,6.33666,3156.3,3155.9,0.2]
[1720700583120,4.26564156,3156.2,3155.9,0.2]
[1720700583421,4.26575156,3156.1,3155.9,0.2]
[1720700583623,1.09727156,3156.0,3155.9,0.2]
[1720700584617,1.09727156,3156.2,3155.9,0.2]
[1720700584823,1.0972682,3156.1,3155.9,0.2]
[1720700585032,1.0972682,3156.0,3155.9,0.2]
[1720700585196,1.0972682,3156.2,3155.9,0.2]
[1720700585581,1.09725602,3156.1,3155.9,0.2]
[1720700585786,3.16822,3156.4,3155.9,0.2]
[1720700586084,1.09723628,3156.3,3155.9,0.2]
[1720700586390,1.09723628,3156.2,3155.9,0.2]
[1720700586597,4.49425574,3156.4,3155.9,0.2]
[1720700586824,5.5915239,3156.3,3155.9,0.2]
[1720700587027,1.09721816,3156.2,3155.9,0.2]
[1720700587409,2.4232539,3156.2,3155.9,0.2]
[1720700587615,1.09721816,3156.1,3155.9,0.2]
[1720700588556,1.09721816,3156.1,3155.9,0.775271]
[1720700588760,1.32603574,3156.4,3155.9,3.943911]
[1720700589128,1.09715113,3156.3,3155.9,0.775271]
[1720700589319,1.32603574,3156.4,3155.9,0.2]
[1720700589648,1.32603574,3156.2,3155.9,0.2]
[1720700589848,1.09720867,3156.1,3155.9,0.2]
[1720700592440,1.32603574,3156.3,3155.9,0.2]
[1720700592654,1.32603574,3156.4,3155.9,0.2]
[1720700592950,1.09718594,3156.3,3156.0,0.06336351]
[1720700593153,1.32603574,3156.4,3155.9,0.853756]
[1720700593355,2.42325287,3156.3,3155.9,0.2]
[1720700593564,1.09721713,3156.2,3155.9,0.2]
[1720700593951,1.32603574,3156.3,3155.9,0.2]
[1720700594136,1.09722833,3156.2,3155.9,0.2]
[1720700594332,1.32603574,3156.3,3155.9,0.2]
[1720700594533,1.09722409,3156.2,3155.9,0.2]
[1720700594761,1.32603574,3156.3,3155.9,3.36865]
[1720700594918,1.09722572,3156.2,3155.9,3.36865]
[1720700595118,1.32603574,3156.3,3155.9,0.2]
[1720700595364,1.09722646,3156.2,3155.9,0.2]
[1720700595565,1.32603574,3156.3,3156.0,2.4958]
[1720700595754,1.32603574,3156.5,3156.0,5.6643]
[1720700595956,1.0971392,3156.4,3156.0,5.72765872]
[1720700596269,1.32603574,3156.6,3156.0,5.72765872]
[1720700596443,1.09711212,3156.5,3156.0,6.67098819]
[1720700596644,1.32603574,3156.6,3156.0,6.67098819]
[1720700596862,1.09711692,3156.5,3156.0,9.83946819]
[1720700597169,1.32603574,3156.6,3156.0,9.83946819]
[1720700597330,1.09711325,3156.5,3156.0,9.83946819]
[1720700597527,1.32603574,3156.6,3156.1,0.56287773]
[1720700597726,1.32603574,3156.7,3156.1,0.56287773]
[1720700597932,1.09710061,3156.6,3156.1,0.62623642]
[1720700598167,1.09710498,3156.5,3156.1,0.62623642]
[1720700598352,4.49391574,3156.7,3156.1,0.56287773]
[1720700598663,2.42314059,3156.6,3155.9,3.43201874]
[1720700598855,2.42314059,3156.5,3156.0,0.55]
[1720700599239,1.32603574,3156.5,3156.0,3.71854]
[1720700599440,1.09717223,3156.4,3156.0,3.71854]
[1720700599645,1.32603574,3156.6,3156.0,3.71854]
[1720700599852,1.09712916,3156.5,3156.0,3.71854]
[1720700600043,1.32603574,3156.6,3156.0,3.71854]
[1720700600254,1.09711491,3156.5,3155.9,3.36866]
[1720700600464,4.49400574,3156.6,3155.9,0.2]
[1720700600633,1.09711732,3156.5,3155.9,0.2]
[1720700600978,1.09711482,3156.4,3155.9,0.536868]
[1720700601131,4.49400574,3156.6,3155.9,0.536868]
[1720700601332,1.09711492,3156.5,3155.9,0.536868]
[1720700601528,1.09711492,3156.4,3155.9,0.536868]
[1720700601763,1.09711492,3156.5,3155.9,0.536868]
[1720700601971,1.0971151,3156.4,3155.9,0.536868]
[1720700602168,4.49400574,3156.6,3155.9,0.536868]
[1720700602330,1.09711505,3156.5,3155.9,0.536868]
[1720700602533,1.09711741,3156.4,3155.9,0.536868]
[1720700602734,4.49400574,3156.6,3155.9,0.536868]
[1720700602959,1.09711527,3156.5,3155.9,0.536868]
[1720700603285,1.09711527,3156.4,3156.0,0.6874248]
[1720700603488,1.09711527,3156.5,3156.0,0.6874248]
[1720700603688,1.09711998,3156.4,3156.0,0.6874248]
[1720700603874,4.49400574,3156.6,3155.9,0.2]
[1720700604084,1.0971203,3156.5,3155.9,0.2]
[1720700604255,1.0971203,3156.4,3155.9,0.2]
[1720700604581,4.49400574,3156.6,3155.9,3.36864]
[1720700604739,1.09712085,3156.5,3155.9,3.36864]
[1720700604944,1.32603574,3156.6,3155.9,4.022389]
[1720700605140,1.09711458,3156.5,3155.9,4.022389]
[1720700605344,4.49391574,3156.7,3155.9,7.191029]
[1720700605585,1.09710835,3156.6,3155.9,7.191029]
[1720700605781,1.09710835,3156.5,3156.0,0.7191029]
[1720700606092,4.49391574,3156.7,3156.0,0.7191029]
[1720700606244,4.26507858,3156.6,3155.9,0.2]
[1720700606447,1.09712123,3156.5,3155.9,0.2]
[1720700606677,1.09712123,3156.4,3155.9,0.2]
[1720700606846,4.49737887,3156.6,3155.9,0.2]
[1720700607047,1.09712333,3156.5,3155.9,0.2]
[1720700607381,1.09712333,3156.4,3155.9,0.2]
[1720700607594,4.49737887,3156.6,3155.9,0.2]
[1720700607876,4.26521399,3156.5,3155.9,0.2]
[1720700608094,1.09712399,3156.4,3155.9,0.2]
[1720700608681,4.26539498,3156.3,3155.9,0.2]
[1720700608882,3.16826,3156.3,3155.9,0.2]
[1720700609269,4.49749887,3156.5,3155.9,0.2]
[1720700609485,1.09713216,3156.4,3155.9,0.2]
[1720700609780,1.32940887,3156.6,3155.9,0.2]
[1720700610088,1.097118,3156.5,3155.9,3.36866]
[1720700610383,1.097118,3156.4,3155.9,4.022361]
[1720700610584,4.49736887,3156.6,3155.9,4.022361]
[1720700610748,1.09712197,3156.5,3155.9,7.190951]
[1720700610956,1.09712197,3156.4,3155.9,7.190951]
[1720700611181,4.49736887,3156.6,3155.9,7.190951]
[1720700611388,1.0971167,3156.5,3155.9,6.5372]
[1720700611681,4.49736887,3156.6,3155.9,6.5372]
[1720700612164,3.16796,3156.6,3155.9,6.5372]
[1720700612365,4.49732887,3156.7,3155.9,3.36859]
[1720700612590,4.49732887,3156.7,3156.0,2.4321]
[1720700612591,1.32940887,3156.6,3156.0,2.4321]
[1720700612887,4.49732887,3156.7,3156.4,0.2]
[1720700613287,1.32940887,3156.6,3156.4,0.2]
[1720700613483,4.49732887,3156.7,3156.4,0.2]
[1720700613676,1.32940887,3156.6,3156.4,0.2]
[1720700613878,4.49732887,3156.7,3156.4,0.2]
[1720700614195,4.49719887,3156.8,3156.4,0.2]
[1720700614517,1.32940887,3156.7,3156.4,0.2]
[1720700614794,1.32940887,3156.6,3156.4,0.2]
[1720700614969,1.32940887,3156.7,3156.4,0.2]
[1720700615366,1.32940887,3156.6,3156.4,0.2]
[1720700616871,1.32940887,3156.6,3156.4,0.4]
[1720700619485,4.83007694,3156.8,3156.4,0.4]
[1720700619486,1.32940887,3156.7,3156.4,0.4]
[1720700620997,1.32940887,3156.7,3156.4,0.6]
[1720700621715,1.09706098,3156.6,3156.4,0.6]
[1720700621874,1.09706098,3156.5,3156.4,0.6]
[1720700623212,1.32940887,3156.7,3156.4,0.6]
[1720700623414,1.09705557,3156.6,3156.4,0.6]
[1720700623707,1.09705557,3156.5,3156.4,0.6]
[1720700623919,1.09705557,3156.6,3156.4,0.6]
[1720700625212,1.09705557,3156.6,3156.4,0.8]
[1720700626102,1.09705557,3156.7,3156.4,0.8]
[1720700626302,1.09705557,3156.6,3156.4,0.8]
[1720700626725,1.09705557,3156.5,3156.4,0.8]
[1720700629011,1.32940887,3157.0,3156.7,3.16786]
[1720700629209,1.09690546,3156.9,3156.8,3.16776]
[1720700629404,1.32940887,3157.3,3156.9,3.16764]
[1720700629608,1.09682562,3157.2,3156.9,3.80119]
[1720700629820,1.09682562,3157.1,3156.7,3.16781]
[1720700630027,1.09682562,3157.1,3156.8,3.1677]
[1720700630231,1.09686633,3157.0,3156.8,3.1677]
[1720700630391,1.32940887,3157.2,3156.8,3.1677]
[1720700630709,1.09687338,3157.1,3156.8,3.1677]
[1720700630909,1.09687338,3157.0,3156.8,3.1677]
[1720700631119,1.32940887,3157.2,3156.8,3.1677]
[1720700631304,1.09687816,3157.1,3156.8,3.1677]
[1720700631506,1.09687816,3157.0,3156.8,3.1677]
[1720700631835,1.32940887,3157.2,3156.8,3.801251]
[1720700632018,1.09686863,3157.1,3156.8,3.801251]
[1720700632220,1.09686863,3157.0,3156.8,3.801251]
[1720700632422,1.09686863,3157.1,3156.9,3.16765]
[1720700633123,1.09686863,3157.2,3156.9,6.33524]
[1720700633328,1.32940887,3157.4,3157.0,3.6634552]
[1720700633527,1.09676954,3157.3,3157.0,3.6634552]
[1720700633734,1.32939814,3157.5,3157.0,3.6634552]
[1720700633930,1.09677186,3157.4,3157.0,3.6634552]
[1720700634114,1.09677186,3157.3,3157.0,3.6634552]
[1720700634324,1.09677186,3157.4,3157.0,3.6634552]
[1720700634506,1.32939814,3157.5,3157.1,0.68310452]
[1720700634706,1.09676126,3157.4,3157.1,0.68310452]
[1720700634907,1.32939814,3157.5,3157.1,0.68310452]
[1720700635139,1.09677682,3157.4,3157.2,3.16727]
[1720700635340,3.16653,3158.1,3157.2,3.16727]
[1720700635341,1.32939814,3157.8,3157.5,3.16696]
[1720700635541,1.99409722,3158.2,3157.1,2.32550723]
[1720700635542,1.32939814,3158.0,3157.4,0.06333672]
[1720700635753,1.32939814,3158.0,3157.4,3.16709]
[1720700635754,1.32939814,3157.8,3157.4,3.16709]
[1720700635919,1.32939814,3157.8,3157.2,3.16733]
[1720700635920,1.09665632,3157.7,3157.2,3.16733]
[1720700636246,2.42605446,3157.7,3157.1,2.32550723]
[1720700636609,1.09665632,3157.6,3157.2,3.16734]
[1720700637138,1.32939814,3157.8,3157.2,3.16734]
[1720700637316,1.09672823,3157.7,3157.2,3.16734]
[1720700637502,1.32939814,3157.8,3157.2,6.33468]
[1720700637703,1.09672821,3157.7,3157.2,3.16734]
[1720700637937,1.32939814,3157.8,3157.2,3.16734]
[1720700638103,1.09672749,3157.7,3157.2,4.03337572]
[1720700638303,1.32939814,3157.8,3157.2,4.03337572]
[1720700638636,1.09672748,3157.7,3157.2,4.03337572]
[1720700638937,1.32939814,3157.8,3157.2,4.03337572]
[1720700639141,1.09674762,3157.7,3157.2,4.03337572]
[1720700639348,8.69029,3158.0,3157.2,4.03337572]
[1720700639520,1.32804147,3157.8,3157.2,4.03337572]
[1720700639721,8.69029,3158.0,3157.2,4.03337572]
[1720700639920,1.09661919,3157.9,3157.2,4.03337572]
[1720700640234,1.09661919,3157.8,3157.3,3.73482784]
[1720700640606,1.32804147,3157.9,3157.3,3.73482784]
[1720700640946,1.32804147,3158.0,3157.5,3.16705]
[1720700641106,1.32804147,3158.1,3157.5,3.16705]
[1720700641306,1.09661947,3158.0,3157.5,3.16705]
[1720700641507,1.09661947,3157.9,3157.5,3.16705]
[1720700641707,1.32804147,3158.1,3157.5,3.16705]
[1720700642052,2.42466881,3158.0,3157.5,3.16705]
[1720700642341,1.32804147,3158.1,3157.7,3.16685]
[1720700642647,1.09661569,3158.0,3157.7,3.16685]
[1720700642853,1.32804147,3158.2,3157.7,3.16685]
[1720700643057,1.09660299,3158.1,3157.7,3.16685]
[1720700643216,1.32804147,3158.2,3157.7,3.16685]
[1720700643552,1.32804147,3158.3,3157.7,3.16685]
[1720700643719,1.09657961,3158.2,3157.8,3.16674]
[1720700643925,1.32804147,3158.3,3157.6,3.16689]
[1720700644126,1.09656759,3158.2,3157.6,3.16689]
[1720700644323,3.2797631,3158.4,3157.7,3.52446596]
[1720700644324,0.1135931,3158.4,3157.7,3.52446596]
[1720700644593,0.1135931,3158.4,3157.7,3.16683]
[1720700644746,1.09653828,3158.3,3157.7,3.16679]
[1720700644915,1.44163457,3158.4,3157.7,3.16679]
[1720700645251,1.44163457,3158.4,3157.5,6.047]
[1720700645252,1.09657168,3158.3,3157.5,6.047]
[1720700645440,1.09657168,3158.2,3157.5,6.047]
[1720700645639,1.09657168,3158.3,3157.5,6.047]
[1720700645818,1.09660499,3158.2,3157.5,2.88]
[1720700646159,3.16696,3157.6,3157.1,1.64240271]
[1720700646460,3.16723,3157.4,3157.1,1.64240271]
[1720700646611,1.32804147,3157.6,3156.4,11.78956964]
[1720700646811,3.16746,3157.1,3156.4,1.33146964]
[1720700647372,3.16792,3156.7,3156.4,1.33146964]
[1720700647544,3.16792,3156.7,3156.4,1.0]
[1720700649019,3.16774,3156.9,3156.4,1.0]
[1720700649215,1.32804147,3157.1,3156.4,1.0]
[1720700649469,1.32804147,3157.3,3156.5,3.584875]
[1720700649614,1.32804147,3157.4,3156.6,0.0633477]
[1720700649822,3.16709,3157.5,3156.6,0.0633477]
[1720700650128,1.32804147,3157.6,3156.4,1.0]
[1720700650129,3.16738,3157.2,3156.4,1.0]
[1720700650363,1.09696064,3157.1,3156.4,1.0]
[1720700650654,3.16738,3157.2,3156.4,4.584967]
[1720700650839,1.09695932,3157.1,3156.4,1.0]
[1720700651152,3.16738,3157.2,3156.4,1.0]
[1720700651315,1.09695745,3157.1,3156.4,1.0]
[1720700651520,3.16738,3157.2,3156.4,1.0]
[1720700651716,1.09697856,3157.1,3156.4,1.0]
[1720700651921,4.49527147,3157.4,3156.5,3.64822913]
[1720700652156,3.16737,3157.2,3156.5,0.416825]
[1720700652341,1.09695607,3157.1,3156.4,1.0]
[1720700652660,3.16737,3157.2,3156.4,4.16813]
[1720700652661,1.09695607,3157.0,3156.4,4.16813]
[1720700652827,3.16763,3157.0,3156.4,1.0]
[1720700653028,4.26442607,3157.1,3156.4,1.0]
[1720700653029,3.16767,3156.9,3156.4,1.0]
[1720700656633,6.33542,3156.9,3156.4,1.0]
[1720700656889,3.16794,3156.7,3156.4,1.0]
[1720700657037,3.16796,3156.6,3156.4,1.0]
[1720700659232,3.16796,3156.6,3156.0,3.20149978]
[1720700659436,3.16817,3156.4,3156.0,2.87]
[1720700659776,3.16817,3156.4,3156.0,3.20160556]
[1720700662273,3.16796,3156.6,3156.0,4.41500639]
[1720700662572,3.16766,3156.9,3156.0,7.58355639]
[1720700662784,4.49499264,3157.0,3156.1,3.23181019]
[1720700662956,1.09704417,3156.9,3156.1,6.40022019]
[1720700663155,4.49499264,3157.0,3156.2,0.62968237]
[1720700663388,3.16762,3157.0,3156.2,0.62968237]
[1720700663595,3.16762,3157.0,3156.8,0.2]
[1720700664461,3.16766,3156.9,3156.8,0.2]
[1720700664896,4.26468973,3156.9,3156.8,0.2]
[1720700665058,4.26469018,3156.9,3156.8,0.2]
[1720700665898,4.26469551,3156.9,3156.8,0.2]
[1720700666267,3.16766,3156.9,3156.8,0.2]
[1720700666603,4.26469063,3156.9,3156.8,0.2]
[1720700666813,4.26470302,3156.9,3156.8,0.2]
[1720700667396,8.47427903,3156.9,3156.8,0.2]
[1720700667760,5.30661903,3156.9,3156.8,0.4]
[1720700667971,4.26470302,3156.9,3156.8,0.4]
[1720700668906,7.43236302,3156.9,3156.8,0.4]
[1720700669419,9.87746302,3156.9,3156.8,0.4]
[1720700669697,11.38110491,3156.9,3156.8,0.4]
[1720700670406,19.70796115,3156.9,3156.8,0.4]
[1720700670570,17.71642491,3156.9,3156.8,0.4]
[1720700671621,18.03412491,3156.9,3156.8,0.4]
[1720700671810,3.16887,3155.7,3155.0,2.3776]
[1720700671990,3.16887,3155.7,3155.1,1.283721]
[1720700672894,3.16936,3155.3,3155.0,3.21169544]
[1720700673216,3.16912,3155.5,3155.0,2.88]
[1720700673621,6.33827,3155.5,3155.0,2.88]
[1720700673787,3.16855,3156.1,3155.1,0.288]
[1720700673788,1.32737788,3155.9,3155.1,0.288]
[1720700673993,1.09753569,3155.8,3155.1,0.288]
[1720700674188,1.09753569,3155.7,3155.2,2.3638]
[1720700674389,3.16863,3156.0,3155.2,2.3638]
[1720700674591,3.1684,3156.2,3155.3,0.06337852]
[1720700674808,3.1681,3156.5,3155.4,0.55965185]
[1720700675008,1.09725543,3156.4,3155.9,3.16857]
[1720700675215,3.16813,3156.5,3155.7,3.16878]
[1720700675629,3.16772,3156.9,3155.8,0.06336965]
[1720700675834,1.09712143,3156.8,3155.7,3.16881]
[1720700676120,3.16772,3156.9,3155.7,3.16881]
[1720700676121,1.09712143,3156.7,3155.8,1.103261]
[1720700676331,3.16793,3156.7,3155.8,1.103261]
[1720700676618,3.16793,3156.7,3155.8,4.272011]
[1720700676619,1.09713372,3156.6,3155.8,4.272011]
[1720700676823,6.33587,3156.7,3155.9,0.7440821]
[1720700677127,1.09714514,3156.6,3155.9,0.7440821]
[1720700677417,1.09718685,3156.5,3155.9,3.9127421]
[1720700677617,6.33588,3156.7,3155.9,7.0813521]
[1720700677618,3.16793,3156.7,3155.9,7.0813521]
[1720700677820,1.09716676,3156.6,3155.9,3.9126921]
[1720700678022,3.16793,3156.7,3156.0,0.50159531]
[1720700678184,1.09717034,3156.6,3156.1,2.94336394]
[1720700678410,3.16745,3157.2,3156.3,3.16825]
[1720700678600,1.09697199,3157.1,3156.3,3.16825]
[1720700678805,1.09697199,3157.0,3156.3,3.16825]
[1720700678999,3.16745,3157.2,3156.4,0.633652]
[1720700679202,1.09699362,3157.1,3156.4,3.86514912]
[1720700679405,3.16736,3157.2,3156.4,6.30134912]
[1720700679671,1.09693901,3157.1,3156.4,6.237992]
[1720700679943,1.09693901,3157.0,3156.4,3.801792]
[1720700680150,1.09693901,3157.1,3156.4,3.801792]
[1720700680443,1.09700371,3157.0,3156.4,3.801792]
[1720700680610,3.16736,3157.2,3156.5,0.3801792]
[1720700680811,1.09700349,3157.1,3156.4,3.801792]
[1720700681028,1.09700349,3157.0,3156.4,3.801792]
[1720700681243,1.09700349,3157.1,3156.5,2.4586]
[1720700681543,3.16735,3157.3,3156.5,2.4586]
[1720700681841,1.0969391,3157.2,3156.5,2.4586]
[1720700682025,1.0969391,3157.2,3156.5,5.62664]
[1720700682230,1.0969391,3157.1,3156.5,5.62664]
[1720700682433,4.2643191,3157.2,3156.5,2.4586]
[1720700682606,1.09699017,3157.1,3156.4,3.16816]
[1720700682808,1.09699017,3157.0,3156.2,3.16831]
[1720700683143,1.09699017,3157.0,3156.2,3.16829]
[1720700683545,1.09699017,3157.0,3156.3,3.16824]
[1720700683708,3.16749,3157.1,3156.3,3.16824]
[1720700683709,1.09703264,3156.9,3156.3,3.16824]
[1720700683906,3.16749,3157.1,3156.3,3.16824]
[1720700684142,1.5013453,3157.0,3156.2,3.16829]
[1720700684354,1.09702859,3156.9,3156.3,3.16823]
[1720700684549,1.09702859,3157.0,3156.3,3.16823]
[1720700684704,1.09704515,3156.9,3156.3,3.16823]
[1720700684910,3.16749,3157.1,3156.3,3.16823]
[1720700685110,1.09704983,3157.0,3156.3,3.16823]
[1720700685347,1.09704983,3156.9,3156.3,3.16823]
[1720700685548,1.09704983,3157.0,3156.2,3.16829]
[1720700685713,1.09704983,3156.9,3156.2,6.33658]
[1720700685914,4.26461983,3157.0,3156.2,3.16829]
[1720700686119,1.09704983,3156.9,3156.2,3.16829]
[1720700686552,3.16807,3156.5,3156.1,2.88]
[1720700686756,1.09704983,3156.4,3156.1,2.88]
[1720700687051,3.16831,3156.3,3156.1,2.88]
[1720700687251,4.26551725,3156.3,3156.1,2.88]
[1720700687424,1.09720725,3156.2,3156.1,2.88]
[1720700687614,1.0972769,3156.2,3156.1,2.88]
[1720700688668,3.16812,3156.5,3156.1,2.88]
[1720700688827,1.09723073,3156.4,3156.1,2.88]
[1720700689022,3.16797,3156.6,3156.1,2.88]
[1720700689229,1.32511235,3156.9,3156.1,6.33641]
[1720700689458,1.09710643,3156.8,3156.2,3.23164031]
[1720700689759,1.32511235,3157.1,3156.4,3.16814]
[1720700689971,1.0969844,3157.0,3156.4,3.16814]
[1720700690268,1.0969844,3156.9,3156.2,3.16828]
[1720700690419,1.09706047,3156.8,3156.2,4.344863]
[1720700690623,7.6625137,3157.1,3156.3,3.16818]
[1720700690924,5.59207752,3157.0,3156.2,1.176583]
[1720700691121,1.09699382,3156.9,3156.2,1.176583]
[1720700691330,3.16783,3156.8,3156.1,2.88]
[1720700691577,2.42457333,3156.7,3156.1,2.88]
[1720700691740,1.09710963,3156.6,3156.1,2.88]
[1720700692668,1.3274637,3156.8,3156.1,6.04846]
[1720700692956,7.6628737,3156.9,3156.1,6.970166]
[1720700693176,5.59229332,3156.8,3156.1,3.801706]
[1720700693328,4.4952337,3156.8,3156.1,3.801706]
[1720700694059,4.49608356,3156.8,3156.1,3.801706]
[1720700695050,1.32831356,3156.8,3156.1,6.970136]
[1720700695228,1.32831356,3156.9,3156.2,3.92868487]
[1720700695423,1.09706325,3156.8,3156.2,3.8653236]
[1720700695629,1.09706325,3156.7,3156.2,3.8653236]
[1720700696154,4.82806195,3156.9,3156.2,3.8653236]
[1720700696155,4.49598356,3156.9,3156.2,3.8653236]
[1720700696355,1.09703622,3156.8,3156.2,3.8653236]
[1720700696563,4.49598356,3156.9,3156.2,3.8653236]
[1720700696866,1.32831356,3157.0,3156.3,3.16826]
[1720700697191,2.42534754,3156.9,3156.3,4.3143296]
[1720700697345,1.32831356,3157.0,3156.6,3.16795]
[1720700697555,1.66039195,3157.1,3156.6,3.16795]
[1720700697556,1.32831356,3157.1,3156.6,3.16795]
[1720700697736,1.0969796,3157.0,3156.6,3.16795]
[1720700697935,1.32831356,3157.0,3156.6,3.16795]
[1720700698323,1.32831356,3157.1,3156.6,3.80156]
[1720700698663,1.09697546,3157.0,3156.6,3.80156]
[1720700698839,1.32831356,3157.1,3156.6,3.80156]
[1720700699159,1.09696602,3157.0,3156.6,3.80156]
[1720700699372,1.32831356,3157.1,3156.6,3.80156]
[1720700699581,1.32831356,3157.1,3156.7,0.380156]
[1720700700266,1.32831356,3157.1,3156.7,3.547936]
[1720700700455,1.32831356,3157.1,3156.8,3.16767]
[1720700700639,1.32831356,3157.1,3156.8,3.16775]
[1720700701071,1.32831356,3157.1,3156.7,3.547956]
[1720700701809,1.32831356,3157.1,3156.7,3.547946]
[1720700701962,1.32831356,3157.1,3156.8,0.3547946]
[1720700702387,1.32831356,3157.1,3156.2,2.4419]
[1720700702388,4.49584356,3157.1,3156.2,2.4419]
[1720700702588,7.66338356,3157.1,3156.2,2.4419]
[1720700702795,4.49584356,3157.1,3156.2,2.4419]
[1720700703291,1.32831356,3157.1,3156.3,3.1682]
[1720700703500,1.32831356,3157.1,3156.4,3.16815]
[1720700703802,1.32831356,3157.1,3156.4,4.045975]
[1720700703961,1.09695419,3157.0,3156.4,0.877825]
[1720700704960,3.16751,3157.1,3156.4,0.877825]
[1720700705161,1.09695536,3157.0,3156.4,0.877825]
[1720700705384,1.09695536,3156.9,3156.4,0.877825]
[1720700705588,1.09695536,3156.8,3156.4,0.877825]
[1720700705798,1.09695536,3157.0,3156.4,4.045975]
[1720700706004,1.09694679,3156.9,3156.4,4.045975]
[1720700706212,1.09694679,3156.8,3156.5,0.7214135]
[1720700706512,1.32790523,3157.3,3156.6,3.1679]
[1720700706666,1.09690448,3157.2,3156.6,3.1679]
[1720700706870,1.09690448,3157.1,3156.7,3.16785]
[1720700707221,1.09690448,3157.0,3156.7,3.16785]
[1720700707423,1.09690448,3157.2,3156.8,3.16775]
[1720700707700,1.09690333,3157.1,3156.8,3.16775]
[1720700707913,1.09690333,3157.0,3156.8,3.80131]
[1720700708067,1.32790523,3157.4,3156.8,3.80131]
[1720700708267,1.09687301,3157.3,3156.8,0.63356]
[1720700708472,1.09687301,3157.2,3156.7,3.16781]
[1720700708672,1.09687301,3157.3,3156.8,3.16774]
[1720700708874,1.09687301,3157.2,3157.1,3.16746]
[1720700709096,1.32790523,3157.7,3157.1,3.16746]
[1720700709296,1.65971478,3157.8,3157.2,3.23069038]
[1720700709297,1.0967283,3157.6,3157.2,3.23069038]
[1720700709500,1.0967283,3157.5,3157.2,3.23069038]
[1720700709731,1.32790523,3157.8,3157.3,3.16723]
[1720700709909,1.09667692,3157.7,3157.5,3.16698]
[1720700710132,1.32790523,3158.1,3157.6,3.16694]
[1720700710416,1.09662765,3158.0,3157.6,3.16694]
[1720700710573,1.09659678,3157.9,3157.6,3.16694]
[1720700710773,4.49423523,3158.3,3157.5,3.16701]
[1720700710986,3.36790047,3158.2,3157.5,6.334]
[1720700711191,1.09662493,3158.1,3157.5,3.16699]
[1720700711486,1.09661961,3158.0,3157.5,3.16698]
[1720700711689,1.32790523,3158.3,3157.6,3.16695]
[1720700711917,1.09661113,3158.2,3157.6,3.16695]
[1720700712116,1.09661113,3158.1,3157.6,3.16695]
[1720700712616,3.16626,3158.3,3157.6,3.16695]
[1720700712907,4.26297255,3158.2,3157.3,3.7172]
[1720700713109,4.26297255,3158.2,3157.0,2.5377]
[1720700713110,1.09661255,3158.1,3157.1,3.16741]
[1720700713276,3.16656,3158.0,3157.2,3.16727]
[1720700713474,3.16656,3158.0,3157.1,3.16741]
[1720700713475,1.09667239,3157.9,3157.1,3.16741]
[1720700713678,3.16656,3158.0,3157.2,1.120511]
[1720700714218,4.49426523,3158.2,3157.4,3.16708]
[1720700714375,1.09665461,3158.1,3157.4,3.16708]
[1720700714580,3.16636,3158.2,3157.4,3.16708]
[1720700715083,1.09665172,3158.1,3157.4,3.16708]
[1720700715278,0.94336331,3158.3,3157.5,3.16699]
[1720700715510,1.09660899,3158.2,3157.5,3.16698]
[1720700715816,0.1135931,3158.4,3157.6,0.61333227]
[1720700716027,0.1135931,3158.4,3158.0,3.16649]
[1720700716498,0.1135931,3158.4,3157.8,3.16666]
[1720700716694,0.1135931,3158.4,3157.9,0.55]
[1720700717023,0.1135931,3158.4,3157.5,2.3707]
[1720700717249,3.60771441,3158.4,3157.5,2.3707]
[1720700717524,3.60771441,3158.4,3157.6,0.55]
[1720700718323,3.16653,3158.1,3157.4,7.29]
[1720700718530,3.16656,3158.0,3157.4,7.29]
[1720700718827,3.16637,3158.2,3157.4,7.29]
[1720700718987,0.44155441,3158.4,3157.4,7.29]
[1720700718988,0.554037,3158.1,3157.4,7.29]
[1720700719186,3.16639,3158.2,3157.5,3.167]
[1720700719871,3.16639,3158.2,3157.3,6.33442]
[1720700720045,3.16639,3158.2,3157.4,3.71712]
[1720700720671,3.16639,3158.2,3157.4,0.55]
[1720700720866,0.316639,3158.1,3157.3,0.55]
[1720700721358,0.316639,3158.1,3157.3,3.71721]
[1720700721564,3.483099,3158.1,3157.3,3.71721]
[1720700721925,3.16634,3158.3,3157.4,3.16714]
[1720700722176,3.16637,3158.2,3157.4,3.16714]
[1720700723259,3.16657,3158.0,3157.3,0.55]
[1720700723427,3.16657,3158.0,3157.2,0.55]
[1720700723628,3.16637,3158.2,3157.3,3.16724]
[1720700723836,6.97743731,3158.2,3157.3,3.16724]
[1720700724148,0.1135931,3158.4,3157.4,3.16715]
[1720700724451,3.16627,3158.3,3157.5,3.71699]
[1720700724627,3.16627,3158.3,3157.6,3.16695]
[1720700725050,3.16627,3158.3,3157.5,0.55]
[1720700725255,3.16627,3158.3,3157.3,3.1672]
[1720700725256,3.16647,3158.1,3157.3,3.1672]
[1720700725489,6.33262,3158.3,3157.4,3.800611]
[1720700725775,3.16636,3158.2,3157.4,3.16716]
[1720700726179,3.16627,3158.3,3157.4,3.16716]
[1720700726540,3.16645,3158.2,3157.4,3.16716]
[1720700726741,3.16627,3158.3,3157.4,3.16716]